bitfinex/quotes_BTCUSD_20250110
["timestamp","ask_amount","ask_price","bid_price","bid_amount"]
[1736539803585,0.00312608,95453.0,95450.0,0.209532]
[1736539803800,0.23491761,95474.0,95451.0,0.23114742]
[1736539803801,0.01048549,95464.0,95451.0,0.23114742]
[1736539804002,0.003,95454.0,95451.0,0.23009976]
[1736539804202,0.003,95454.0,95452.0,1.5]
[1736539805264,0.209504,95464.0,95452.0,1.5]
[1736539805667,0.00311841,95463.0,95452.0,1.5]
[1736539805866,0.00311841,95463.0,95452.0,1.504]
[1736539806063,0.209507,95462.0,95452.0,1.5]
[1736539806509,0.00311655,95461.0,95452.0,1.502]
[1736539806690,0.209492,95469.0,95452.0,1.502]
[1736539806691,0.209492,95469.0,95453.0,0.209527]
[1736539806886,0.2095,95466.0,95453.0,0.209527]
[1736539807097,0.00312026,95465.0,95453.0,0.209527]
[1736539807319,0.209503,95464.0,95454.0,1.5]
[1736539807545,0.21262234,95464.0,95454.0,1.5]
[1736539808845,0.42212534,95464.0,95454.0,1.5]
[1736539809045,0.209522,95455.0,95454.0,0.002]
[1736539809252,0.209517,95458.0,95454.0,0.002]
[1736539809426,0.00311847,95455.0,95454.0,0.002]
[1736539809632,0.209517,95458.0,95454.0,0.002]
[1736539809849,0.00311847,95455.0,95454.0,0.002]
[1736539810052,0.209517,95458.0,95454.0,0.002]
[1736539810419,0.20952,95456.0,95443.0,0.286748]
[1736539810623,0.00312033,95457.0,95443.0,0.286748]
[1736539810624,0.00312033,95457.0,95443.0,0.36626707]
[1736539810847,0.209499,95466.0,95454.0,0.002]
[1736539811260,0.211503,95464.0,95454.0,0.002]
[1736539811475,0.002,95464.0,95455.0,0.31486928]
[1736539811682,0.002,95464.0,95461.0,0.209509]
[1736539811888,0.002,95464.0,95463.0,0.0457]
[1736539812151,8.54e-05,95475.0,95463.0,0.14999976]
[1736539812355,0.0031166,95464.0,95457.0,0.0787]
[1736539812577,0.209492,95469.0,95457.0,0.0787]
[1736539812780,0.00312032,95463.0,95457.0,0.0787]
[1736539813312,0.209492,95469.0,95457.0,0.0787]
[1736539813513,0.00285944,95462.0,95457.0,0.0787]
[1736539813685,0.00285944,95462.0,95457.0,0.0797]
[1736539814004,0.00343767,95461.0,95458.0,1.5]
[1736539814217,0.209485,95472.0,95458.0,1.5]
[1736539814414,0.209485,95472.0,95457.0,0.289216]
[1736539814619,0.209485,95472.0,95457.0,0.290216]
[1736539814823,0.209494,95469.0,95467.0,1.5]
[1736539816108,0.00344058,95468.0,95467.0,1.5]
[1736539818289,0.00344058,95468.0,95457.0,0.0787]
[1736539818721,0.00344058,95468.0,95458.0,1.5]
[1736539818923,0.209496,95467.0,95458.0,1.5]
[1736539819122,0.21293804,95467.0,95458.0,1.5]
[1736539819345,0.209496,95467.0,95458.0,1.5]
[1736539819565,0.251395,95467.0,95458.0,1.5]
[1736539819769,0.209516,95458.0,95457.0,0.001]
[1736539819924,0.209516,95458.0,95444.0,0.10133435]
[1736539819925,0.209518,95457.0,95444.0,0.10133435]
[1736539820271,0.21296386,95458.0,95445.0,1.5]
[1736539820444,0.209522,95455.0,95445.0,1.5]
[1736539820853,0.00345035,95454.0,95445.0,1.5]
[1736539821053,0.00345035,95454.0,95446.0,0.209542]
[1736539821258,0.00345035,95454.0,95450.0,0.209532]
[1736539821496,0.001,95457.0,95451.0,0.10429976]
[1736539822219,0.00343004,95456.0,95451.0,0.10429976]
[1736539823482,0.001,95457.0,95451.0,0.10429976]
[1736539823684,0.00343834,95455.0,95451.0,0.10429976]
[1736539823844,0.00343936,95456.0,95452.0,1.5]
[1736539824038,0.00343732,95454.0,95452.0,1.5]
[1736539824241,0.001,95457.0,95452.0,1.5]
[1736539824466,0.001,95457.0,95452.0,1.60429976]
[1736539824671,0.15,95470.0,95452.0,1.60429976]
[1736539824866,0.03775848,95469.0,95452.0,1.60429976]
[1736539825122,0.03775848,95469.0,95452.0,1.60629976]
[1736539825123,0.04121125,95469.0,95452.0,1.60629976]
[1736539825312,0.04121125,95469.0,95452.0,1.502]
[1736539825626,0.2288,95468.0,95452.0,1.505]
[1736539825831,0.2288,95468.0,95452.0,1.502]
[1736539826035,0.209525,95454.0,95452.0,1.502]
[1736539826413,0.00344383,95453.0,95452.0,1.5]
[1736539826615,0.209525,95454.0,95452.0,1.5]
[1736539827590,0.209525,95454.0,95452.0,1.501]
[1736539828211,0.209517,95458.0,95452.0,1.501]
[1736539828420,0.209515,95459.0,95452.0,1.502]
[1736539828660,0.00344054,95457.0,95452.0,1.501]
[1736539828907,0.0769854,95475.0,95453.0,0.18159976]
[1736539828908,0.21990568,95474.0,95453.0,0.18159976]
[1736539829102,0.21990568,95474.0,95464.0,0.0476]
[1736539829103,0.01042468,95474.0,95464.0,0.0476]
[1736539829276,0.00365521,95473.0,95468.0,0.209492]
[1736539829477,0.01042468,95474.0,95472.0,1.5]
[1736539829675,8.54e-05,95475.0,95472.0,0.10429976]
[1736539830162,8.54e-05,95475.0,95473.0,0.10534706]
[1736539830339,8.54e-05,95475.0,95473.0,1.81483006]
[1736539830556,8.54e-05,95475.0,95473.0,0.31483006]
[1736539831172,8.54e-05,95475.0,95474.0,1.5]
[1736539831324,8.54e-05,95475.0,95474.0,1.60429976]
[1736539832613,8.54e-05,95475.0,95474.0,1.61329976]
[1736539834014,8.54e-05,95475.0,95474.0,1.60429976]
[1736539834165,8.54e-05,95475.0,95474.0,1.61329976]
[1736539834366,8.54e-05,95475.0,95474.0,0.013]
[1736539834813,0.02517141,95475.0,95474.0,0.018]
[1736539835126,0.02517141,95475.0,95474.0,0.004]
[1736539835563,0.00419899,95475.0,95474.0,0.01]
[1736539835775,0.00419899,95475.0,95466.0,1.5]
[1736539835950,0.00419899,95475.0,95474.0,0.002]
[1736539836100,8.54e-05,95475.0,95474.0,0.002]
[1736539836308,0.00418451,95475.0,95474.0,0.002]
[1736539836527,8.54e-05,95475.0,95474.0,0.002]
[1736539837142,0.00418582,95475.0,95474.0,0.005]
[1736539837357,8.54e-05,95475.0,95474.0,0.003]
[1736539837877,0.00418514,95475.0,95474.0,0.003]
[1736539838105,8.54e-05,95475.0,95474.0,0.003]
[1736539839118,0.00418532,95475.0,95474.0,0.005]
[1736539839291,8.54e-05,95475.0,95474.0,0.005]
[1736539839469,0.00418532,95475.0,95474.0,0.005]
[1736539839638,8.54e-05,95475.0,95474.0,0.005]
[1736539839838,0.00418532,95475.0,95474.0,0.005]
[1736539840065,8.54e-05,95475.0,95474.0,0.10929976]
[1736539840276,0.00417611,95475.0,95474.0,0.12033447]
[1736539840483,8.54e-05,95475.0,95474.0,0.155347]
[1736539840779,8.54e-05,95475.0,95474.0,1.655347]
[1736539841139,8.54e-05,95475.0,95474.0,1.65429976]
[1736539843908,8.54e-05,95492.0,95476.0,0.1]
[1736539844161,8.54e-05,95492.0,95480.0,0.286467]
[1736539844365,8.54e-05,95492.0,95491.0,0.209443]
[1736539844586,8.54e-05,95492.0,95491.0,1.89074276]
[1736539845152,0.0010854,95492.0,95491.0,1.89074276]
[1736539845565,8.54e-05,95492.0,95491.0,1.89074276]
[1736539845771,8.54e-05,95492.0,95491.0,1.99504252]
[1736539846137,8.54e-05,95492.0,95491.0,2.00004252]
[1736539846324,8.54e-05,95492.0,95491.0,2.04874252]
[1736539846766,8.54e-05,95492.0,95491.0,2.06934875]
[1736539847139,8.54e-05,95492.0,95491.0,2.46193054]
[1736539847286,8.54e-05,95492.0,95491.0,2.44793054]
[1736539847803,8.54e-05,95492.0,95491.0,2.46193054]
[1736539848393,8.54e-05,95492.0,95491.0,2.44793054]
[1736539848795,8.54e-05,95492.0,95491.0,2.46965791]
[1736539849303,8.54e-05,95492.0,95491.0,2.46465791]
[1736539850496,8.54e-05,95492.0,95491.0,2.45565791]
[1736539850704,8.54e-05,95492.0,95491.0,2.47265791]
[1736539851407,8.54e-05,95514.0,95507.0,0.1]
[1736539851647,8.54e-05,95531.0,95516.0,0.1]
[1736539851856,8.54e-05,95531.0,95516.0,0.64013536]
[1736539852057,8.54e-05,95531.0,95516.0,2.28253124]
[1736539852267,8.54e-05,95531.0,95516.0,2.45190637]
[1736539852493,8.54e-05,95531.0,95516.0,2.48608082]
[1736539852692,8.54e-05,95531.0,95516.0,2.52072966]
[1736539852904,8.54e-05,95531.0,95516.0,2.55074237]
[1736539853311,8.54e-05,95531.0,95516.0,2.52845703]
[1736539853517,8.54e-05,95531.0,95516.0,2.55846974]
[1736539853974,8.54e-05,95531.0,95516.0,2.56746974]
[1736539854178,8.54e-05,95531.0,95516.0,2.55846974]
[1736539854588,8.54e-05,95531.0,95516.0,2.52945703]
[1736539854799,8.54e-05,95531.0,95516.0,2.55946974]
[1736539854947,8.54e-05,95531.0,95516.0,2.56346974]
[1736539855356,8.54e-05,95531.0,95516.0,2.53345703]
[1736539855590,8.54e-05,95531.0,95516.0,2.55946974]
[1736539855800,8.54e-05,95531.0,95516.0,2.53045703]
[1736539856366,8.54e-05,95531.0,95516.0,2.55946974]
[1736539856775,8.54e-05,95531.0,95516.0,2.52945703]
[1736539857183,8.54e-05,95531.0,95516.0,2.53045703]
[1736539857800,8.54e-05,95531.0,95516.0,2.53817703]
[1736539858376,8.54e-05,95531.0,95516.0,2.50352819]
[1736539858596,7e-05,95573.0,95516.0,2.50352819]
[1736539858597,7e-05,95573.0,95542.0,0.434332]
[1736539858797,7e-05,95573.0,95542.0,0.58206496]
[1736539859004,7e-05,95573.0,95542.0,0.70570644]
[1736539859248,7e-05,95573.0,95542.0,2.20570644]
[1736539860186,7e-05,95573.0,95542.0,2.22870644]
[1736539860545,7e-05,95573.0,95542.0,2.23270644]
[1736539860744,7e-05,95573.0,95542.0,2.24170644]
[1736539860989,7e-05,95573.0,95542.0,2.23270644]
[1736539861428,7e-05,95573.0,95542.0,2.24170644]
[1736539861660,0.209271,95570.0,95542.0,2.14144271]
[1736539861895,0.209283,95565.0,95542.0,1.96900951]
[1736539862110,0.0808,95560.0,95542.0,1.96451323]
[1736539862751,0.209282,95565.0,95542.0,1.95851323]
[1736539862971,0.209282,95565.0,95542.0,1.97351323]
[1736539863432,0.209291,95561.0,95542.0,1.96451323]
[1736539863678,0.209311,95552.0,95542.0,1.65388147]
[1736539863941,0.0776,95547.0,95542.0,0.12364148]
[1736539864396,0.00550259,95543.0,95542.0,1.63164148]
[1736539864612,0.0016686,95543.0,95542.0,1.62364148]
[1736539864838,0.0016686,95543.0,95542.0,1.62864148]
[1736539865125,0.0016686,95543.0,95542.0,1.63164148]
[1736539865531,0.0016686,95543.0,95542.0,1.62864148]
[1736539865735,0.00550211,95543.0,95542.0,1.62864148]
[1736539865955,0.0016686,95543.0,95542.0,1.63064148]
[1736539866116,0.0016686,95543.0,95542.0,1.62564148]
[1736539866325,0.0016686,95543.0,95542.0,1.63064148]
[1736539866527,0.0016686,95543.0,95542.0,1.62864148]
[1736539866755,0.0016686,95543.0,95542.0,1.62364148]
[1736539866968,0.0016686,95543.0,95542.0,1.63064148]
[1736539867929,0.2109976,95543.0,95542.0,1.63064148]
[1736539870861,0.4397976,95543.0,95542.0,1.63064148]
[1736539871263,0.4436378,95543.0,95542.0,1.63064148]
[1736539871506,0.4436378,95543.0,95542.0,1.62364148]
[1736539871722,0.4436378,95543.0,95542.0,0.12364148]
[1736539872643,0.2936378,95543.0,95542.0,0.12364148]
[1736539874171,0.2936378,95543.0,95542.0,0.12464148]
[1736539874349,0.36590775,95543.0,95542.0,0.12464148]
[1736539874581,0.51590775,95543.0,95542.0,0.12464148]
[1736539874994,0.4436378,95543.0,95542.0,0.12464148]
[1736539877139,0.57093756,95543.0,95542.0,0.12464148]
[1736539881853,0.4514378,95543.0,95542.0,0.12464148]
[1736539882298,0.4514378,95543.0,95542.0,1.62464148]
[1736539882634,0.4436378,95543.0,95542.0,1.62464148]
[1736539882832,0.4436378,95543.0,95542.0,1.62364148]
[1736539883575,0.4436378,95543.0,95542.0,0.12364148]
[1736539884253,0.54793756,95543.0,95542.0,0.12364148]
[1736539884787,0.54793756,95543.0,95542.0,0.00420603]
[1736539884788,0.82073756,95543.0,95542.0,0.00420603]
[1736539884962,0.82073756,95543.0,95492.0,0.0001706]
[1736539884963,0.023,95521.0,95492.0,0.0001706]
[1736539885121,0.209435,95495.0,95492.0,0.0001706]
[1736539885318,0.41887,95495.0,95492.0,0.0001706]
[1736539885523,0.209439,95493.0,95492.0,0.0001706]
[1736539885923,0.00380225,95493.0,95492.0,0.0001706]
[1736539886320,0.209425,95500.0,95492.0,0.0001706]
[1736539886877,0.209428,95498.0,95492.0,0.0001706]
[1736539887218,0.209428,95498.0,95492.0,0.0041706]
[1736539887429,0.20942,95502.0,95492.0,0.0041706]
[1736539887430,0.00379721,95497.0,95492.0,0.0001706]
[1736539887630,0.20942,95502.0,95493.0,0.0787]
[1736539887850,0.00380307,95501.0,95493.0,0.0787]
[1736539888105,0.209424,95500.0,95494.0,1.5]
[1736539888450,0.209412,95506.0,95494.0,1.709437]
[1736539888656,0.04750976,95505.0,95494.0,1.5]
[1736539888860,0.209432,95497.0,95494.0,1.5]
[1736539889043,0.418864,95497.0,95494.0,1.5]
[1736539889266,0.209435,95495.0,95494.0,1.5]
[1736539889467,0.15,95494.0,95492.0,0.0011706]
[1736539889701,0.5390278,95493.0,95492.0,0.0031706]
[1736539890101,0.5390278,95493.0,95492.0,0.0011706]
[1736539890307,0.6390278,95493.0,95492.0,0.0011706]
[1736539890516,0.6390278,95493.0,95492.0,0.0001706]
[1736539891014,0.6430278,95493.0,95492.0,0.0011706]
[1736539891831,0.5430278,95493.0,95492.0,0.0011706]
[1736539892144,0.6430278,95493.0,95492.0,0.0011706]
[1736539892344,0.6450278,95493.0,95492.0,0.0011706]
[1736539893692,0.37703157,95493.0,95492.0,0.0011706]
[1736539894072,0.22703157,95493.0,95492.0,0.0011706]
[1736539894306,0.22103157,95493.0,95492.0,1.5001706]
[1736539894743,0.22703157,95493.0,95492.0,1.5001706]
[1736539894950,0.22303157,95493.0,95492.0,1.5001706]
[1736539895130,0.22103157,95493.0,95492.0,1.5001706]
[1736539895927,0.28604653,95493.0,95492.0,1.5001706]
[1736539896302,0.22103157,95493.0,95492.0,1.5001706]
[1736539897601,0.22103157,95493.0,95492.0,0.0001706]
[1736539898571,0.22303157,95493.0,95492.0,0.0001706]
[1736539899471,0.50033133,95493.0,95492.0,0.0001706]
[1736539899884,0.50333133,95493.0,95492.0,0.0001706]
[1736539900630,0.49833133,95493.0,95492.0,0.0001706]
[1736539900936,0.50333133,95493.0,95492.0,0.0001706]
[1736539901345,0.50233133,95493.0,95492.0,0.0001706]
[1736539901844,0.50433133,95493.0,95492.0,0.0001706]
[1736539903198,0.73493133,95493.0,95492.0,0.0001706]
[1736539903618,0.83493133,95493.0,95492.0,0.0001706]
[1736539904153,0.83093133,95493.0,95492.0,0.0001706]
[1736539904656,0.83493133,95493.0,95492.0,6e-07]
[1736539905097,0.83293133,95493.0,95492.0,6e-07]
[1736539905459,0.83493133,95493.0,95492.0,6e-07]
[1736539906493,0.83485133,95493.0,95492.0,6e-07]
[1736539907075,0.83285133,95493.0,95492.0,6e-07]
[1736539907455,0.83585133,95493.0,95492.0,6e-07]
[1736539911398,0.83585133,95493.0,95456.0,1.5]
[1736539911399,0.359518,95457.0,95456.0,1.5]
[1736539911618,0.359521,95456.0,95453.0,0.0001706]
[1736539911828,0.382525,95454.0,95453.0,0.0001706]
[1736539912042,0.49081532,95454.0,95453.0,0.0001706]
[1736539912241,0.59081532,95454.0,95453.0,0.0001706]
[1736539912605,0.66861532,95454.0,95453.0,0.0001706]
[1736539913623,0.67561532,95454.0,95453.0,0.0011706]
[1736539913831,0.49081532,95454.0,95453.0,0.0001706]
[1736539914044,0.50553532,95454.0,95453.0,0.0011706]
[1736539914424,0.49853532,95454.0,95453.0,0.0001706]
[1736539915032,0.36751556,95454.0,95453.0,0.0001706]
[1736539915187,0.37523556,95454.0,95453.0,0.0001706]
[1736539915389,0.37123556,95454.0,95453.0,0.0001706]
[1736539915616,0.47553532,95454.0,95453.0,0.0001706]
[1736539915829,0.48653532,95454.0,95453.0,0.0011706]
[1736539916359,0.47753532,95454.0,95453.0,0.0001706]
[1736539916571,0.47753532,95454.0,95453.0,0.0011706]
[1736539916804,0.48353532,95454.0,95453.0,0.0011706]
[1736539917017,0.47753532,95454.0,95453.0,0.0001706]
[1736539917196,0.48253532,95454.0,95453.0,0.0011706]
[1736539917634,0.47753532,95454.0,95453.0,0.0001706]
[1736539917836,0.48653532,95454.0,95453.0,0.0001706]
[1736539917984,0.48453532,95454.0,95453.0,0.0001706]
[1736539918226,0.68943532,95454.0,95453.0,0.0001706]
[1736539918443,0.69243532,95454.0,95453.0,0.0001706]
[1736539918948,0.68943532,95454.0,95453.0,0.0001706]
[1736539919350,0.79243532,95454.0,95453.0,0.0001706]
[1736539919653,0.78343532,95454.0,95453.0,0.0001706]
[1736539919855,0.81547518,95454.0,95453.0,0.0011706]
[1736539920216,0.80847518,95454.0,95453.0,0.0001706]
[1736539920424,0.80847518,95454.0,95453.0,6e-07]
[1736539920425,1.14677518,95454.0,95453.0,6e-07]
[1736539920626,1.11873532,95454.0,95453.0,6e-07]
[1736539920828,1.18927518,95454.0,95453.0,6e-07]
[1736539921055,1.19327518,95454.0,95453.0,6e-07]
[1736539923362,0.582551,95442.0,95441.0,0.0001706]
[1736539923727,0.46781764,95442.0,95441.0,0.0001706]
[1736539923921,0.22123788,95442.0,95441.0,0.0001706]
[1736539924138,0.38956963,95442.0,95441.0,0.0001706]
[1736539924553,0.33825948,95442.0,95441.0,0.0001706]
[1736539924760,0.34425948,95442.0,95441.0,0.0011706]
[1736539925357,0.51725948,95442.0,95441.0,0.0011706]
[1736539925703,0.61725948,95442.0,95441.0,0.0011706]
[1736539925901,0.71725948,95442.0,95441.0,0.0011706]
[1736539927180,0.71725948,95442.0,95441.0,6e-07]
[1736539927921,1.07159934,95442.0,95441.0,6e-07]
[1736539928780,1.04655948,95442.0,95441.0,6e-07]
[1736539929159,0.66583948,95442.0,95441.0,6e-07]
[1736539929375,0.67355948,95442.0,95441.0,6e-07]
[1736539929622,0.82355948,95442.0,95441.0,6e-07]
[1736539930532,1.02155948,95442.0,95441.0,6e-07]
[1736539930666,1.12155948,95442.0,95441.0,6e-07]
[1736539930871,1.16745948,95442.0,95441.0,6e-07]
[1736539931272,0.81583948,95442.0,95441.0,6e-07]
[1736539931458,0.82355948,95442.0,95441.0,6e-07]
[1736539932093,0.84655948,95442.0,95441.0,6e-07]
[1736539932843,0.82355948,95442.0,95441.0,6e-07]
[1736539933306,0.94655948,95442.0,95441.0,6e-07]
[1736539934260,1.04655948,95442.0,95441.0,6e-07]
[1736539934439,0.94655948,95442.0,95441.0,6e-07]
[1736539934649,1.12725948,95442.0,95441.0,6e-07]
[1736539935239,0.81583948,95442.0,95441.0,6e-07]
[1736539935450,0.82355948,95442.0,95441.0,6e-07]
[1736539935654,0.81583948,95442.0,95441.0,6e-07]
[1736539935905,0.66583948,95442.0,95441.0,6e-07]
[1736539936109,0.67355948,95442.0,95441.0,6e-07]
[1736539936487,0.56925972,95442.0,95441.0,6e-07]
[1736539937834,0.67355948,95442.0,95441.0,6e-07]
[1736539938470,0.66583948,95442.0,95441.0,6e-07]
[1736539938670,0.23995972,95442.0,95441.0,6e-07]
[1736539938875,0.23832737,95442.0,95441.0,6e-07]
[1736539939841,0.01196688,95442.0,95441.0,6e-07]
[1736539940828,0.00996688,95442.0,95441.0,6e-07]
[1736539941000,0.209553,95441.0,95436.0,0.0487]
[1736539941446,0.00396574,95440.0,95436.0,0.0487]
[1736539941662,0.209557,95439.0,95436.0,0.0487]
[1736539941870,0.00396574,95440.0,95436.0,0.0487]
[1736539941871,0.00396574,95440.0,95437.0,0.18629976]
[1736539942085,0.00381503,95438.0,95437.0,0.18629976]
[1736539942299,0.209476,95477.0,95454.0,0.082]
[1736539942505,0.31375576,95486.0,95458.0,0.209516]
[1736539942506,0.00382889,95476.0,95458.0,0.209516]
[1736539942725,0.00772,95483.0,95457.0,0.082]
[1736539942726,0.209466,95481.0,95457.0,0.082]
[1736539942962,0.00772,95483.0,95458.0,0.0798]
[1736539943136,0.209481,95475.0,95458.0,0.0798]
[1736539943579,0.00382475,95474.0,95459.0,0.209514]
[1736539943788,0.00382475,95474.0,95459.0,1.5]
[1736539943994,0.20947,95479.0,95459.0,1.5]
[1736539944199,0.001,95481.0,95459.0,1.5]
[1736539944200,0.00381489,95473.0,95459.0,1.5]
[1736539944372,0.209481,95474.0,95459.0,1.5]
[1736539944373,0.209498,95467.0,95459.0,1.5]
[1736539945129,0.209498,95467.0,95459.0,1.501]
[1736539945903,0.00381748,95466.0,95459.0,1.501]
[1736539946325,0.209481,95474.0,95459.0,0.001]
[1736539946534,0.209481,95474.0,95458.0,0.289314]
[1736539946535,0.209489,95471.0,95458.0,0.0798]
[1736539946744,0.001,95467.0,95458.0,0.0798]
[1736539947617,0.209474,95477.0,95460.0,0.288911]
[1736539947819,0.00382156,95476.0,95460.0,0.288911]
[1736539948039,0.26283006,95479.0,95460.0,0.288911]
[1736539948269,0.20947,95479.0,95464.0,0.209501]
[1736539948493,0.00382628,95478.0,95465.0,0.0822]
[1736539948718,0.209474,95477.0,95465.0,0.0822]
[1736539948914,0.00382628,95478.0,95465.0,0.0822]
[1736539949087,0.209478,95475.0,95465.0,0.0822]
[1736539949284,0.25252854,95475.0,95465.0,0.0822]
[1736539949589,0.209483,95473.0,95465.0,0.0822]
[1736539949813,0.209483,95473.0,95460.0,0.002]
[1736539949814,0.209509,95461.0,95460.0,0.002]
[1736539950021,0.209509,95461.0,95446.0,0.0826]
[1736539950022,0.209534,95450.0,95446.0,0.0826]
[1736539950472,0.209538,95448.0,95446.0,0.0826]
[1736539950882,0.0038327,95447.0,95446.0,0.0826]
[1736539951785,0.0038327,95447.0,95446.0,0.0846]
[1736539952637,0.0038327,95447.0,95446.0,1.5886]
[1736539952845,0.24060055,95482.0,95446.0,1.5886]
[1736539952846,0.01070156,95464.0,95446.0,1.5886]
[1736539953015,0.209505,95463.0,95446.0,1.5866]
[1736539953255,0.209524,95455.0,95446.0,1.5886]
[1736539953466,0.209524,95455.0,95446.0,1.5846]
[1736539953839,0.4400004,95455.0,95446.0,1.5866]
[1736539954050,0.4400004,95455.0,95446.0,1.5826]
[1736539954282,0.209527,95453.0,95446.0,1.5826]
[1736539954460,0.209527,95453.0,95446.0,1.5836]
[1736539954680,0.209539,95448.0,95446.0,1.5836]
[1736539954882,0.00380819,95447.0,95446.0,0.0836]
[1736539955291,0.209526,95454.0,95446.0,1.5836]
[1736539955500,0.00380997,95453.0,95446.0,1.5836]
[1736539955709,0.00380997,95453.0,95446.0,1.68689976]
[1736539955919,0.209498,95466.0,95450.0,0.209532]
[1736539956093,0.209506,95463.0,95450.0,0.209532]
[1736539956704,0.209527,95453.0,95447.0,0.0478]
[1736539957024,0.00380847,95452.0,95447.0,0.0478]
[1736539957384,0.41904,95457.0,95447.0,0.0478]
[1736539957582,0.209526,95454.0,95447.0,0.0478]
[1736539958014,0.209518,95457.0,95447.0,0.0478]
[1736539958225,0.209529,95453.0,95447.0,0.0478]
[1736539958475,0.00380909,95452.0,95448.0,0.209538]
[1736539958609,0.209501,95465.0,95448.0,0.209538]
[1736539958804,0.00381326,95464.0,95454.0,0.0797]
[1736539959059,0.209505,95463.0,95455.0,1.5]
[1736539959617,0.01070592,95471.0,95455.0,1.5]
[1736539959618,0.209495,95468.0,95455.0,1.5]
[1736539959816,0.418992,95467.0,95455.0,1.5]
[1736539960021,0.00772,95470.0,95455.0,1.5]
[1736539960022,0.32174126,95466.0,95455.0,1.5]
[1736539960225,0.209532,95451.0,95447.0,0.0478]
[1736539960428,0.00381564,95450.0,95447.0,0.0478]
[1736539960633,0.00381564,95450.0,95448.0,1.5]
[1736539960837,0.209535,95449.0,95448.0,1.5]
[1736539963019,0.209535,95449.0,95448.0,1.501]
[1736539963857,0.209535,95449.0,95448.0,0.001]
[1736539964088,0.2133457,95449.0,95448.0,0.001]
[1736539964288,0.2133457,95449.0,95448.0,0.003]
[1736539964488,0.209535,95449.0,95448.0,0.003]
[1736539964649,0.2133457,95449.0,95448.0,0.003]
[1736539965485,0.0038107,95449.0,95448.0,0.003]
[1736539965712,0.209509,95462.0,95448.0,0.001]
[1736539965910,0.209511,95460.0,95449.0,0.0752]
[1736539966244,0.21332781,95459.0,95449.0,0.0752]
[1736539966536,0.209516,95458.0,95450.0,1.5]
[1736539966905,0.20952,95456.0,95450.0,1.5]
[1736539967106,0.00381089,95455.0,95450.0,1.5]
[1736539967425,0.209531,95452.0,95450.0,1.5]
[1736539967803,0.00381374,95451.0,95441.0,0.0786]
[1736539968354,0.209535,95449.0,95442.0,1.5]
[1736539968703,0.209533,95450.0,95442.0,1.5]
[1736539968704,0.21334923,95448.0,95442.0,1.5]
[1736539968914,0.209538,95448.0,95443.0,0.04056812]
[1736539969332,0.00381039,95447.0,95443.0,0.04056812]
[1736539970604,0.00381039,95447.0,95445.0,0.0819]
[1736539970808,0.01034462,95467.0,95447.0,0.20954]
[1736539971036,0.209503,95464.0,95451.0,0.20953]
[1736539971220,0.209503,95464.0,95453.0,0.209527]
[1736539971385,0.00381916,95463.0,95453.0,0.209527]
[1736539971559,0.00381916,95463.0,95452.0,0.0472]
[1736539971966,0.209507,95462.0,95452.0,0.0472]
[1736539972420,0.209515,95459.0,95452.0,0.0472]
[1736539972897,0.00381602,95458.0,95452.0,0.0472]
[1736539973111,0.00381602,95458.0,95454.0,1.5]
[1736539973289,0.209518,95457.0,95445.0,0.0829]
[1736539973620,0.209528,95453.0,95450.0,0.00041067]
[1736539973994,0.00382753,95452.0,95450.0,0.00041067]
[1736539974193,0.210515,95459.0,95450.0,0.00041067]
[1736539974598,0.0038212,95458.0,95452.0,0.209529]
[1736539974753,0.0038212,95458.0,95456.0,0.209518]
[1736539974971,0.001,95459.0,95458.0,0.209516]
[1736539975173,0.20948,95475.0,95458.0,0.31381576]
[1736539975623,0.20948,95475.0,95461.0,0.209508]
[1736539975827,0.209476,95477.0,95462.0,0.209507]
[1736539976040,0.00382286,95474.0,95462.0,0.209507]
[1736539976240,0.209478,95475.0,95462.0,0.209507]
[1736539976467,0.00381868,95473.0,95462.0,0.209507]
[1736539976712,0.00381951,95474.0,95462.0,0.209507]
[1736539976890,0.00381868,95473.0,95462.0,0.209507]
[1736539977062,0.00381868,95473.0,95462.0,0.003]
[1736539977680,0.209504,95464.0,95462.0,0.003]
[1736539977905,0.00382893,95463.0,95462.0,0.003]
[1736539978534,0.209507,95462.0,95453.0,1.5]
[1736539979083,0.209504,95464.0,95453.0,1.5]
[1736539979459,0.209504,95464.0,95462.0,0.002]
[1736539979659,0.209504,95464.0,95462.0,0.001]
[1736539979799,0.00382488,95463.0,95462.0,0.001]
[1736539980201,0.00382488,95463.0,95453.0,1.5]
[1736539980438,0.00382488,95463.0,95453.0,1.501]
[1736539980603,0.209507,95462.0,95453.0,1.501]
[1736539981065,0.209504,95464.0,95453.0,1.501]
[1736539981272,0.209498,95467.0,95454.0,0.06540344]
[1736539981480,0.1874674,95490.0,95453.0,1.710527]
[1736539981481,0.0937337,95486.0,95453.0,0.10529976]
[1736539981791,0.209513,95460.0,95453.0,0.001]
[1736539981939,0.15,95474.0,95455.0,1.5]
[1736539982145,0.209506,95463.0,95455.0,1.5]
[1736539982344,0.209506,95463.0,95462.0,0.003]
[1736539982673,0.209506,95463.0,95462.0,0.001]
[1736539982674,0.0038176,95463.0,95462.0,0.001]
[1736539983076,0.00381776,95463.0,95455.0,1.5]
[1736539983438,0.209498,95466.0,95455.0,1.501]
[1736539983643,0.209501,95465.0,95463.0,0.04056812]
[1736539984001,0.00381858,95464.0,95463.0,0.04056812]
[1736539985877,0.00381858,95464.0,95463.0,0.04356812]
[1736539986076,0.00381858,95464.0,95463.0,0.04156812]
[1736539986488,0.00381858,95464.0,95463.0,0.04456812]
[1736539987417,0.25811834,95464.0,95463.0,0.04456812]
[1736539987621,0.56341834,95464.0,95463.0,0.04456812]
[1736539987820,0.46341834,95464.0,95463.0,0.04456812]
[1736539988210,0.56341834,95464.0,95463.0,0.04356812]
[1736539988612,0.56641834,95464.0,95463.0,0.04056812]
[1736539988817,0.57341834,95464.0,95463.0,0.04156812]
[1736539989084,0.57041834,95464.0,95463.0,0.04156812]
[1736539989316,0.56341834,95464.0,95463.0,0.04056812]
[1736539989481,0.57441834,95464.0,95463.0,0.04156812]
[1736539990100,0.70978141,95464.0,95463.0,0.04156812]
[1736539990451,0.46641834,95464.0,95463.0,0.04056812]
[1736539990653,0.47541834,95464.0,95463.0,0.04156812]
[1736539990986,0.57241834,95464.0,95463.0,0.04156812]